bitfinex/quotes_ETHUSD_20241215
["timestamp","ask_amount","ask_price","bid_price","bid_amount"]
[1734237355488,0.19188204,3897.8,3897.7,0.87008827]
[1734237357373,0.19188204,3897.8,3897.7,0.805]
[1734237359221,0.19188204,3897.8,3897.7,0.86993513]
[1734237360516,0.19181894,3897.8,3897.7,0.86993513]
[1734237360967,0.19181894,3897.8,3897.7,1.21350964]
[1734237362247,1.07345337,3898.4,3897.8,0.7527]
[1734237362445,0.19184579,3898.3,3897.8,0.7527]
[1734237362776,0.19184579,3898.2,3897.9,0.06482819]
[1734237362956,0.19184579,3898.1,3897.9,0.06482819]
[1734237363161,0.19184579,3898.0,3897.8,0.7527]
[1734237363459,0.19184579,3897.9,3897.8,0.7527]
[1734237364328,0.19184579,3897.9,3897.8,0.81753682]
[1734237365365,0.19200203,3897.9,3897.8,0.81753682]
[1734237366730,0.19200203,3897.9,3897.8,1.1558625]
[1734237367966,0.19200203,3897.9,3897.8,0.81753682]
[1734237368579,0.19196416,3897.9,3897.8,0.81753682]
[1734237368790,4.40184337,3898.5,3897.8,0.81753682]
[1734237369079,4.40184337,3898.5,3897.2,5.56593]
[1734237369080,2.56529,3898.2,3897.3,0.7586]
[1734237369278,0.19195771,3898.1,3897.9,0.06459568]
[1734237369435,0.19195771,3898.1,3897.3,0.7586]
[1734237369436,0.19195771,3898.0,3897.3,0.7586]
[1734237369633,0.19195771,3897.9,3897.4,0.06463548]
[1734237369882,0.19195771,3897.8,3897.4,0.06463548]
[1734237370087,0.19195771,3897.7,3897.4,0.06463548]
[1734237370230,0.19195771,3897.6,3897.4,0.06463548]
[1734237370587,2.56529,3898.2,3897.4,0.06463548]
[1734237370886,0.1919649,3898.1,3897.4,0.06463548]
[1734237371086,0.1919649,3898.0,3897.4,0.77460488]
[1734237371248,0.1919649,3897.9,3897.5,0.7586]
[1734237371434,0.1919649,3897.8,3897.5,0.7586]
[1734237371670,0.19196963,3897.7,3897.6,0.06461485]
[1734237374699,0.19196164,3897.7,3897.6,0.06461485]
[1734237374993,0.19196164,3897.7,3897.6,0.21793328]
[1734237378112,1.07345337,3898.4,3897.6,0.21793328]
[1734237378322,0.19199226,3898.3,3897.6,0.21793328]
[1734237378607,0.19199226,3898.2,3897.6,0.21793328]
[1734237378900,0.19199226,3898.1,3897.6,0.06461485]
[1734237379189,0.19201232,3898.0,3897.6,0.06461485]
[1734237379413,0.19201232,3897.9,3897.6,0.06461485]
[1734237379587,0.19201232,3897.8,3897.6,0.06461485]
[1734237379788,0.19201232,3897.7,3897.6,0.06461485]
[1734237380218,0.19201232,3897.7,3897.5,0.7586]
[1734237380521,3.63887337,3898.0,3897.6,0.06464294]
[1734237380719,1.07345337,3897.8,3897.2,0.7797]
[1734237380879,3.220343,3897.8,3897.2,0.7797]
[1734237381073,2.33897059,3897.7,3897.3,0.06480495]
[1734237381326,0.19208096,3897.6,3897.2,0.7797]
[1734237381644,0.19208096,3897.5,3897.3,0.06480495]
[1734237381815,0.19208096,3897.4,3897.3,0.06480495]
[1734237383723,0.19208096,3897.4,3896.9,0.7797]
[1734237383724,1.05097715,3897.4,3896.6,0.7797]
[1734237383908,1.05101239,3897.3,3896.7,0.06502214]
[1734237384086,0.19208096,3897.2,3896.7,0.06502214]
[1734237384291,0.19208096,3897.1,3896.6,0.7797]
[1734237384626,2.40748006,3897.6,3896.6,0.7797]
[1734237384627,0.19208096,3897.0,3896.7,0.06502781]
[1734237384827,5.97922414,3896.9,3896.7,0.06502781]
[1734237385001,5.97922414,3896.9,3896.2,0.7797]
[1734237385002,3.4131081,3896.8,3896.2,0.7797]
[1734237385195,1.05109277,3896.7,3896.2,0.7797]
[1734237385416,0.19208096,3896.6,3896.3,0.06115921]
[1734237385614,0.19208096,3896.5,3896.3,0.06115921]
[1734237385788,0.19208096,3896.5,3896.2,0.7797]
[1734237385789,0.19208096,3896.4,3896.2,0.7797]
[1734237385992,0.19208096,3896.3,3896.2,0.7797]
[1734237387036,2.56616,3896.9,3896.2,0.7797]
[1734237387381,0.19185507,3896.8,3896.2,0.7797]
[1734237387647,0.19185507,3896.7,3896.2,0.7797]
[1734237387851,0.19185507,3896.7,3895.5,3.15372987]
[1734237387852,0.19185507,3896.6,3895.6,3.0]
[1734237388055,0.19185507,3896.5,3895.7,1.75826722]
[1734237388187,0.19185507,3896.4,3895.7,1.75826722]
[1734237388393,2.56615,3896.9,3895.7,1.75826722]
[1734237388637,0.19169318,3896.8,3895.7,1.75826722]
[1734237388838,0.19169318,3896.7,3895.7,1.75826722]
[1734237389046,0.19169318,3896.6,3895.8,1.04790371]
[1734237389349,0.19169318,3896.5,3895.8,1.04790371]
[1734237389507,0.19169318,3896.4,3895.8,1.04790371]
[1734237389816,2.56615,3896.9,3895.8,1.04790371]
[1734237390027,0.19162685,3896.8,3895.8,1.04790371]
[1734237390231,0.19162685,3896.7,3895.9,0.48276037]
[1734237390421,0.19162685,3896.6,3895.9,0.48276037]
[1734237390635,0.19162685,3896.5,3895.9,0.48276037]
[1734237390813,0.19162685,3896.4,3895.9,0.48276037]
[1734237391014,1.07345337,3897.1,3896.2,2.63690776]
[1734237391237,0.19155421,3897.0,3896.4,0.7991]
[1734237391450,2.56563,3897.7,3896.4,0.7991]
[1734237391602,0.19154313,3897.6,3896.4,0.7991]
[1734237391795,0.19154313,3897.5,3896.4,0.7991]
[1734237392001,0.19154313,3897.4,3896.4,0.7991]
[1734237392252,0.19154313,3897.3,3896.6,0.7991]
[1734237392413,0.19154313,3897.2,3896.7,0.02565792]
[1734237392591,0.8171,3897.6,3896.7,0.82475792]
[1734237392796,0.19153841,3897.5,3896.7,0.7991]
[1734237392998,0.19153841,3897.4,3896.7,0.7991]
[1734237393299,0.19153841,3897.3,3896.7,0.7991]
[1734237393517,0.19153841,3897.2,3896.7,0.7991]
[1734237393745,0.8171,3897.6,3896.7,0.7991]
[1734237393746,0.19153841,3897.1,3896.7,0.7991]
[1734237393921,0.8171,3897.6,3896.7,0.7991]
[1734237394130,0.19153773,3897.5,3896.7,0.7991]
[1734237394336,0.19153773,3897.4,3896.8,0.06133767]
[1734237394595,0.19153773,3897.3,3896.8,0.06133767]
[1734237394728,0.19153773,3897.2,3896.8,0.06133767]
[1734237394924,0.19153773,3897.1,3896.8,0.06133767]
[1734237395137,0.8171,3897.6,3896.8,0.06133767]
[1734237395458,0.19154222,3897.5,3896.8,0.06133767]
[1734237395669,0.19154222,3897.4,3896.8,0.06133767]
[1734237395886,0.19154222,3897.3,3896.8,0.06133767]
[1734237396029,0.19154222,3897.2,3896.8,0.06133767]
[1734237396228,0.19154222,3897.1,3896.8,0.06133767]
[1734237396539,0.19155548,3897.0,3896.8,0.06133767]
[1734237396775,0.8171,3897.6,3896.8,0.06133767]
[1734237396776,0.19155548,3897.5,3896.8,0.06133767]
[1734237396973,0.19155552,3897.4,3896.8,0.06133767]
[1734237397151,0.19155552,3897.3,3896.8,0.06133767]
[1734237397486,0.19155552,3897.2,3896.8,0.06133767]
[1734237397683,0.19155552,3897.1,3896.8,0.06133767]
[1734237397840,0.19155552,3897.0,3896.8,0.06133767]
[1734237398029,0.8171,3897.6,3896.8,0.06133767]
[1734237398223,0.19157351,3897.5,3896.8,0.06133767]
[1734237398445,0.19157351,3897.4,3896.8,0.06133767]
[1734237398677,0.19157351,3897.3,3896.8,0.06133767]
[1734237398850,0.19157351,3897.2,3896.8,0.06133767]
[1734237399056,0.19157351,3897.1,3896.8,0.06133767]
[1734237399397,0.19157351,3897.0,3896.8,0.06133767]
[1734237399663,0.8171,3897.6,3896.8,0.06133767]
[1734237399664,0.19157351,3896.9,3896.8,0.06133767]
[1734237399835,0.19157351,3896.9,3896.4,0.7991]
[1734237400074,1.07345337,3897.4,3896.4,0.7991]
[1734237400075,0.19157351,3896.8,3896.4,0.7991]
[1734237400244,0.19157351,3896.7,3896.5,0.06143168]
[1734237400560,0.55,3897.3,3896.5,0.06143168]
[1734237400742,0.19162682,3897.2,3896.5,0.06143168]
[1734237400934,0.55,3897.3,3896.5,0.06143168]
[1734237400935,0.8171,3897.0,3896.5,0.06143168]
[1734237401137,0.19162682,3896.9,3896.1,0.7991]
[1734237401354,0.19162682,3896.8,3896.2,0.0615881]
[1734237401669,0.19162682,3896.7,3896.2,0.0615881]
[1734237401966,0.19162682,3896.6,3896.2,0.0615881]
[1734237402186,2.56615,3896.9,3896.2,0.0615881]
[1734237402187,0.19162682,3896.5,3896.2,0.0615881]
[1734237402345,2.56615,3896.9,3896.2,0.0615881]
[1734237402552,0.19164737,3896.8,3896.2,0.0615881]
[1734237402891,0.19164737,3896.7,3896.2,0.0615881]
[1734237403188,0.19164737,3896.6,3896.2,0.0615881]
[1734237403397,2.56615,3896.9,3896.2,0.0615881]
[1734237403398,0.19164737,3896.5,3896.2,0.0615881]
[1734237403694,0.19164737,3896.4,3896.2,0.0615881]
[1734237403895,0.19164737,3896.3,3896.2,0.0615881]
[1734237406064,0.19168258,3896.3,3896.2,0.0615881]
[1734237406498,0.19168258,3896.3,3895.9,0.7991]
[1734237406634,2.56621,3896.8,3896.2,0.06225203]
[1734237406830,2.56621,3896.8,3895.9,0.7991]
[1734237406831,0.19169714,3896.7,3895.9,0.7991]
[1734237407034,0.19169714,3896.6,3896.3,0.06224339]
[1734237407353,0.19169714,3896.5,3895.9,0.7991]
[1734237407674,0.19169714,3896.4,3896.0,0.06226931]
[1734237407879,0.19169714,3896.3,3896.0,0.06226931]
[1734237408046,2.56621,3896.8,3896.0,0.06226931]
[1734237408047,0.19169714,3896.2,3896.0,0.06226931]
[1734237408247,0.19169714,3896.1,3896.0,0.06226931]
[1734237408875,0.19169714,3896.1,3895.6,0.8065]
[1734237409174,2.56654,3896.3,3895.6,0.8065]
[1734237409367,0.19176693,3896.2,3895.7,0.06236334]
[1734237409595,0.19176693,3896.1,3895.7,0.06236334]
[1734237409808,0.19176693,3896.0,3895.7,0.06236334]
[1734237410077,2.56654,3896.3,3895.7,0.06236334]
[1734237410373,0.19179194,3896.2,3895.7,0.06236334]
[1734237410571,0.19179194,3896.1,3895.4,3.8065]
[1734237410900,0.19179194,3896.0,3895.5,0.06238062]
[1734237411077,0.19179194,3895.9,3895.5,0.06238062]
[1734237411236,0.19179194,3895.8,3895.4,4.45084078]
[1734237411442,0.8171,3896.4,3895.6,0.06237198]
[1734237411686,0.19184126,3896.3,3895.5,0.06238062]
[1734237411974,0.8171,3896.4,3895.4,4.45084078]
[1734237411975,0.19184126,3896.2,3895.6,0.06237198]
[1734237412177,0.19184126,3896.1,3895.4,4.45084078]
[1734237412476,0.19184126,3896.0,3895.5,0.77130873]
[1734237412639,0.19184126,3895.9,3895.6,0.8065]
[1734237412983,3.33396,3896.8,3895.7,0.0625166]
[1734237412984,2.5663,3896.7,3895.7,0.0625166]
[1734237413140,0.19185157,3896.6,3895.7,0.0625166]
[1734237413343,0.19185157,3896.5,3895.7,0.0625166]
[1734237413546,0.19185157,3896.4,3895.7,0.52029574]
[1734237413747,0.19185157,3896.3,3895.7,0.52029574]
[1734237413986,2.5663,3896.7,3895.7,0.52029574]
[1734237413987,0.19185157,3896.2,3895.7,0.52029574]
[1734237414148,0.19185157,3896.1,3895.7,0.52029574]
[1734237414346,0.19185157,3896.0,3895.7,0.52029574]
[1734237414556,0.19185157,3895.9,3895.8,0.20355706]
[1734237414779,0.19185157,3895.9,3895.8,0.26621586]
[1734237415640,0.19187567,3895.9,3895.8,0.26621586]
[1734237416130,0.7677,3896.8,3895.8,0.26621586]
[1734237416346,0.19187504,3896.7,3895.8,0.0626588]
[1734237416554,0.19187504,3896.6,3895.6,0.8065]
[1734237416761,0.19187504,3896.5,3895.7,0.06269014]
[1734237416967,0.19187504,3896.4,3895.7,0.06269014]
[1734237417173,3.52612504,3896.3,3895.7,0.06269014]
[1734237417484,0.19187504,3896.2,3895.7,0.06269014]
[1734237417668,0.19187504,3896.1,3895.7,0.06269014]
[1734237417877,2.75862504,3896.0,3895.7,0.06269014]
[1734237418178,2.75862504,3896.0,3895.3,0.8065]
[1734237418179,0.19187504,3895.9,3895.3,0.8065]
[1734237418387,0.19187504,3895.8,3895.4,0.06271771]
[1734237418578,0.19187504,3895.7,3894.9,1.27519923]
[1734237418778,0.19187504,3895.6,3895.0,0.86925393]
[1734237418944,0.19187504,3895.5,3895.0,0.86925393]
[1734237419149,0.19187504,3895.4,3895.0,0.86925393]
[1734237419352,0.7677,3895.7,3895.0,0.86925393]
[1734237419677,0.19178382,3895.6,3895.0,0.86925393]
[1734237419885,0.7677,3895.7,3895.0,0.86925393]
[1734237419886,0.19178382,3895.5,3895.0,0.86925393]
[1734237420090,0.19178382,3895.4,3895.0,0.86925393]
[1734237420242,0.19178382,3895.3,3895.0,0.06275393]
[1734237420451,2.56702,3895.6,3895.0,0.06275393]
[1734237420452,0.19178382,3895.2,3895.0,0.06275393]
[1734237420747,0.19178382,3895.1,3894.8,0.8065]
[1734237420954,2.56702,3895.6,3894.8,0.8065]
[1734237421154,0.19178919,3895.5,3894.8,0.8065]
[1734237421362,0.19178919,3895.4,3894.8,0.8065]
[1734237421567,0.19178919,3895.3,3894.8,0.8065]
[1734237421770,0.19178919,3895.2,3894.8,0.8065]
[1734237421972,2.56702,3895.6,3894.8,0.8065]
[1734237422168,0.19173366,3895.5,3894.8,0.8065]
[1734237422366,0.19173366,3895.4,3894.8,0.8065]
[1734237422590,0.19173366,3895.3,3894.8,0.8065]
[1734237422892,0.19173366,3895.2,3894.8,0.8065]
[1734237423054,2.56702,3895.6,3894.8,0.8065]
[1734237423255,0.1916979,3895.5,3894.8,0.8065]
[1734237423490,0.1916979,3895.4,3894.8,0.8065]
[1734237423802,0.1916979,3895.3,3894.8,0.8065]
[1734237423954,0.1916979,3895.2,3894.8,0.8065]
[1734237424160,2.56702,3895.6,3894.8,0.8065]
[1734237424477,0.19167447,3895.5,3894.9,0.06278495]
[1734237424696,0.7677,3895.7,3894.9,0.06278495]
[1734237425004,0.19165986,3895.6,3894.9,0.06278495]
[1734237425161,0.19165986,3895.5,3894.9,0.06278495]
[1734237425355,0.19165986,3895.4,3894.9,0.06278495]
[1734237425688,0.19165986,3895.3,3894.9,0.06278495]
[1734237425997,0.19165986,3895.2,3894.9,0.06278495]
[1734237426161,0.7677,3895.7,3894.9,0.06278495]
[1734237426357,0.19165614,3895.6,3894.9,0.06278495]
[1734237426602,0.19165614,3895.5,3894.9,0.40647745]
[1734237426769,3.09116561,3896.3,3894.9,0.40647745]
[1734237426770,0.19165614,3895.4,3895.0,5.23145163]
[1734237426962,3.33428,3896.3,3895.2,0.8065]
[1734237427167,0.19164133,3896.2,3895.3,0.06322731]
[1734237427407,0.19164133,3896.1,3895.3,0.06322731]
[1734237427708,0.19164133,3896.0,3895.4,0.38697273]
[1734237428010,0.19164133,3895.9,3895.5,0.06321002]
[1734237428218,0.19164133,3895.8,3895.5,0.06321002]
[1734237428390,0.19164133,3895.7,3895.4,0.38697273]
[1734237428585,3.33428,3896.3,3895.5,0.06320666]
[1734237428781,0.19172636,3896.2,3895.5,0.06320666]
[1734237429098,0.19172636,3896.2,3894.2,0.8112]
[1734237429099,0.55,3895.5,3894.2,0.8112]
[1734237429295,2.56751,3894.9,3894.2,0.8112]
[1734237429492,0.19172636,3894.8,3894.2,0.8112]
[1734237429697,0.19172636,3894.7,3894.2,0.8112]
[1734237429894,0.19172636,3894.6,3894.2,0.8112]
[1734237430205,0.19172636,3894.5,3894.3,0.078651]
[1734237430407,2.5673,3895.2,3894.3,0.05297322]
[1734237430626,2.56746,3894.9,3894.3,0.05297322]
[1734237430782,3.57578967,3894.8,3894.3,0.05297322]
[1734237431103,0.19172967,3894.7,3894.2,0.8112]
[1734237431274,0.19172967,3894.6,3894.2,0.8112]
[1734237431468,0.19172967,3894.5,3894.2,0.8112]
[1734237431708,0.19172967,3894.4,3894.2,0.8112]
[1734237432004,0.19172967,3894.3,3894.2,0.8112]
[1734237432213,0.19172967,3894.3,3894.2,0.86475556]
[1734237432373,0.19172967,3894.7,3894.2,0.86475556]
[1734237432573,0.1916213,3894.6,3894.2,0.86475556]
[1734237432793,0.1916213,3894.5,3894.2,0.86475556]
[1734237432997,0.1916213,3894.4,3894.2,0.86475556]
[1734237433169,0.55,3894.9,3894.2,0.86475556]
[1734237433392,0.19164412,3894.8,3894.2,0.86475556]
[1734237433596,0.19164412,3894.7,3894.2,0.05355556]
[1734237433777,2.56772,3894.5,3893.8,0.8112]
[1734237434009,0.19164412,3894.4,3893.9,0.05355878]
[1734237434316,3.38422,3894.5,3893.9,0.05355878]
[1734237434617,0.19160395,3894.4,3893.9,0.05355878]
[1734237434791,0.19160395,3894.3,3893.9,0.05355878]
[1734237434989,0.19160395,3894.2,3893.9,0.05355878]
[1734237435191,0.19160395,3894.1,3893.9,0.05355878]
[1734237435497,2.56781,3894.4,3893.9,0.05355878]
[1734237435808,0.19148881,3894.3,3893.8,0.8112]
[1734237436495,0.8165,3894.5,3893.8,0.8112]
[1734237436496,0.19148881,3894.2,3893.8,0.8112]
[1734237436865,0.8165,3894.5,3893.9,0.05350179]
[1734237437044,0.19144562,3894.4,3893.9,0.05350179]
[1734237437225,0.8165,3894.5,3893.8,0.8112]
[1734237437431,0.19144561,3894.4,3893.8,0.8112]
[1734237437596,0.19144561,3894.4,3893.9,0.05350179]
[1734237438530,0.8165,3894.2,3893.9,0.05350179]
[1734237438831,0.8165,3894.2,3893.1,0.8112]
[1734237438832,2.75946561,3894.1,3893.1,0.8112]
[1734237439000,3.38486,3893.6,3893.1,0.8112]
[1734237439198,0.19144561,3893.5,3892.2,0.8112]
[1734237439526,0.19144561,3893.5,3892.1,2.56929]
[1734237439527,0.19144561,3893.5,3892.4,0.8112]
[1734237439892,0.19144561,3893.5,3892.5,0.05111282]
[1734237440107,0.19144561,3893.5,3892.6,0.8112]
[1734237440471,0.19144561,3893.5,3892.7,0.05109552]
[1734237440750,0.19144561,3893.4,3892.7,0.05109552]
[1734237440902,2.56826,3893.7,3892.7,0.05109552]
[1734237441107,0.1912681,3893.6,3892.7,0.05109552]
[1734237442399,2.56839,3893.5,3892.7,0.05109552]
[1734237442888,0.19115868,3893.4,3892.7,0.05109552]
[1734237443914,2.56847,3893.4,3892.7,0.05109552]
[1734237444834,6.02308364,3893.9,3892.7,0.05109552]
[1734237445038,2.56853,3893.3,3892.7,0.05109552]
[1734237445345,3.30931263,3893.8,3892.7,0.05109552]
[1734237445346,0.19117583,3893.2,3892.7,0.05109552]
[1734237445637,0.55,3893.5,3892.7,0.05109552]
[1734237445844,0.55,3893.3,3892.7,0.05109552]
[1734237446043,3.38518,3893.1,3892.7,0.05109552]
[1734237446265,2.75987044,3893.0,3892.7,0.05109552]
[1734237446563,0.19108641,3892.9,3892.3,0.8112]
[1734237446713,0.8165,3893.1,3892.3,0.8112]
[1734237446911,0.8165,3893.1,3891.4,5.20813364]
[1734237446912,0.19114324,3893.0,3892.0,0.8112]
[1734237447145,2.56893,3892.7,3892.0,0.8112]
[1734237447355,0.19114324,3892.6,3892.1,0.05218804]
[1734237448110,2.76013324,3892.6,3892.1,0.05218804]
[1734237448351,0.19114324,3892.5,3892.0,0.8112]
[1734237449546,2.56899,3892.6,3892.0,0.8112]
[1734237449784,2.56882,3892.9,3892.0,0.8112]
[1734237449912,0.19104442,3892.8,3892.1,0.05338904]
[1734237450309,0.19104442,3892.7,3892.0,0.8112]
[1734237450553,0.19104442,3892.7,3892.1,0.05339241]
[1734237451561,3.55,3892.6,3892.1,0.05339241]
[1734237451747,2.56911,3892.4,3892.0,0.8112]
[1734237451911,0.55,3892.6,3892.0,0.8112]
[1734237452115,0.95018432,3892.5,3891.2,0.7788]
[1734237452435,0.19098432,3892.4,3891.4,0.7788]
[1734237452619,0.19098432,3892.4,3891.5,0.05344773]
[1734237454572,0.19098432,3892.4,3891.4,0.7788]
[1734237455234,0.7592,3892.5,3891.4,0.7788]
[1734237455436,0.19100039,3892.4,3891.5,0.05342096]
[1734237456678,2.56921,3892.3,3891.5,0.05342096]
[1734237456828,0.19100039,3892.2,3891.5,0.05342096]
[1734237457858,0.19100039,3892.2,3891.6,0.7788]
[1734237458161,0.19100039,3892.2,3891.7,0.05340318]
[1734237458566,3.0776225,3892.5,3891.7,0.05340318]
[1734237458567,0.19126306,3892.1,3891.7,0.05340318]
[1734237458895,0.19126306,3892.0,3891.6,0.7788]
[1734237459065,0.19126306,3891.9,3891.6,0.7788]
[1734237459416,0.55,3892.4,3891.7,0.05410238]
[1734237459560,0.19128778,3892.3,3891.7,0.05410238]
[1734237459757,0.19128778,3892.2,3891.7,0.05410238]
[1734237459998,0.19128778,3892.1,3891.7,0.05410238]
[1734237460203,0.19128778,3892.0,3891.7,0.05410238]
[1734237460412,0.19128778,3891.9,3891.7,0.05410238]
[1734237460716,0.55,3892.4,3891.7,0.05410238]
[1734237460922,0.19134213,3892.3,3891.7,0.05410238]
[1734237461068,0.19134213,3892.2,3891.6,0.7788]
[1734237461267,0.19134213,3892.1,3891.8,0.05412784]
[1734237461591,0.55,3892.4,3891.6,0.7788]
[1734237461592,0.19134213,3892.0,3891.6,0.7788]
[1734237461926,0.19134213,3891.9,3891.7,0.0541365]
[1734237462059,0.19134213,3892.3,3891.7,0.0541365]
[1734237462254,0.19134213,3892.2,3891.7,0.0541365]
[1734237462563,0.19134213,3892.1,3891.8,3.38118]
[1734237462877,3.37633,3893.3,3892.0,0.8117]
[1734237463076,0.19139584,3893.2,3892.0,0.8117]
[1734237463279,0.19139584,3893.1,3892.1,0.05403364]
[1734237463470,0.19139584,3893.0,3892.1,0.05403364]
[1734237463792,0.19139584,3892.9,3892.1,0.05403364]
[1734237463962,0.19139584,3892.8,3892.2,0.8117]
[1734237464157,0.19139584,3892.7,3892.3,0.05401633]
[1734237464361,3.37633,3893.3,3892.3,0.05401633]
[1734237464362,0.19139584,3892.6,3892.3,0.05401633]
[1734237464563,0.19139584,3892.5,3892.3,0.05401633]
[1734237464761,2.56861,3893.2,3892.3,0.05401633]
[1734237465086,0.19154542,3893.1,3892.2,0.8117]
[1734237465284,0.19154542,3893.0,3892.2,0.8117]
[1734237465596,0.19154542,3892.9,3892.3,0.05401633]
[1734237465763,0.19154542,3892.8,3892.3,0.05401633]
[1734237465981,0.19154542,3892.7,3892.3,0.05401633]
[1734237466296,0.19154542,3892.6,3892.3,0.05401633]
[1734237466502,0.19154542,3892.5,3892.3,0.05401633]
[1734237466679,0.19154542,3892.4,3892.3,0.05401633]
[1734237467062,0.19154542,3892.4,3892.2,0.8117]
[1734237467262,0.50142065,3892.9,3892.3,0.05401633]
[1734237467490,0.19172237,3892.8,3892.3,0.05401633]
[1734237467659,0.19172237,3892.7,3892.2,0.8117]
[1734237467868,0.19172237,3892.6,3892.2,0.8117]
[1734237468120,0.19172237,3892.5,3892.3,0.05401633]
[1734237468274,0.19172237,3892.4,3892.3,0.05401633]
[1734237468471,0.19172237,3892.4,3892.2,0.8117]
[1734237468682,0.19172237,3892.3,3892.2,0.8117]
[1734237469395,0.19172237,3892.3,3892.2,0.86549759]
[1734237471093,0.19203639,3892.3,3892.2,0.86549759]
[1734237473794,0.19203639,3892.3,3892.2,0.8117]
[1734237473969,0.19203639,3892.3,3891.5,0.7952]
[1734237474210,0.19203639,3892.2,3891.7,0.7952]
[1734237474399,0.19203639,3892.1,3891.8,0.05195981]
[1734237474570,0.19203639,3892.1,3891.7,0.7952]
[1734237474768,0.19203639,3892.0,3891.8,0.05195981]
[1734237475001,0.19203639,3891.9,3891.7,1.1728964]
[1734237475228,2.56911,3892.4,3891.7,1.1728964]
[1734237475229,0.19203639,3891.8,3891.7,1.1728964]
[1734237477331,2.56911,3892.4,3891.7,1.1728964]
[1734237477623,2.56945,3891.9,3891.0,1.2776536]
[1734237477789,0.19237138,3891.8,3891.1,0.7952]
[1734237478116,0.19237138,3891.7,3891.1,0.7952]
[1734237478289,0.19237138,3891.6,3891.1,0.7952]
[1734237478485,0.19237138,3891.5,3891.1,0.7952]
[1734237478678,0.19237138,3891.4,3891.1,0.7952]
[1734237478882,0.19237138,3891.3,3891.1,0.7952]
[1734237479083,2.56954,3891.8,3891.1,0.7952]
[1734237479297,0.19238266,3891.7,3891.1,0.7952]
[1734237479516,0.19238266,3891.6,3891.1,0.7952]
[1734237479675,0.19238266,3891.5,3891.1,0.7952]
[1734237479882,0.19238266,3891.4,3891.1,0.7952]
[1734237480082,0.19238266,3891.3,3891.1,0.7952]
[1734237480317,0.19238266,3891.2,3891.1,0.7952]
[1734237480619,0.19237406,3891.2,3891.1,0.7952]
[1734237480822,2.56959,3891.7,3891.1,0.7952]
[1734237481034,0.19237423,3891.6,3891.1,0.7952]
[1734237481250,0.19237423,3891.5,3891.1,0.7952]
[1734237481428,0.19237423,3891.4,3891.1,0.7952]
[1734237481632,0.19237423,3891.3,3891.1,0.7952]
[1734237481935,0.19237423,3891.2,3891.1,0.7952]
[1734237483245,0.19237423,3891.2,3890.8,0.9557426]
[1734237483398,1.83155337,3892.1,3890.8,0.9557426]
[1734237483399,0.19237423,3891.1,3890.8,0.9557426]
[1734237483606,2.56988,3891.3,3890.8,0.9557426]
[1734237483607,0.19237423,3891.0,3890.8,0.9557426]
[1734237483808,0.19237423,3890.9,3890.8,0.9557426]
[1734237484603,0.19224631,3890.9,3890.8,0.9557426]
[1734237485835,2.56968,3891.6,3890.8,1.00518443]
[1734237486041,2.76189145,3891.5,3890.8,1.00518443]
[1734237486241,0.19219145,3891.4,3890.8,1.00518443]
[1734237486414,0.19219145,3891.3,3890.9,0.7922]
[1734237486605,0.19219145,3891.2,3891.0,0.04747453]
[1734237486806,0.19219145,3891.1,3891.0,0.04747453]
[1734237488841,0.19208755,3891.1,3891.0,0.04747453]
[1734237489208,0.19208753,3891.1,3891.0,0.04747453]
[1734237490194,0.19208753,3891.7,3891.0,0.04747453]
[1734237490347,0.19205251,3891.6,3891.1,0.8083]
[1734237490510,3.64263337,3892.3,3891.3,0.8083]
[1734237490736,1.05202087,3892.2,3891.3,0.8083]
[1734237490921,0.1920239,3892.1,3892.0,2.64334309]
[1734237491113,0.1920239,3892.1,3892.0,3.45164309]
[1734237491416,0.1920239,3892.1,3892.0,3.49886808]
[1734237491610,0.1920239,3892.1,3892.0,3.84875489]
[1734237492327,1.07345337,3892.9,3892.0,3.84875489]
[1734237492545,0.19197411,3892.8,3892.0,3.84875489]
[1734237492847,2.56876,3893.0,3892.1,0.8083]
[1734237492848,0.19197411,3892.7,3892.1,0.8083]
[1734237493025,0.19197411,3892.6,3892.5,0.8083]
[1734237493240,0.19197411,3892.6,3892.5,0.85497809]
[1734237495110,1.07345337,3893.0,3892.5,0.85497809]
[1734237495312,0.19196106,3892.6,3892.5,0.85497809]
[1734237495580,0.19196106,3892.6,3892.5,0.8083]
[1734237495850,0.19196106,3892.6,3892.5,0.85431972]
[1734237497822,0.19196106,3892.6,3892.5,0.04601972]
[1734237498025,0.19196106,3892.6,3892.1,0.8083]
[1734237498260,0.19196106,3892.5,3892.2,0.04611038]
[1734237498564,2.56893,3892.7,3892.2,0.04611038]
[1734237498765,0.19194206,3892.6,3892.2,0.04611038]
[1734237498934,0.19194206,3892.5,3892.2,0.04611038]
[1734237499138,0.19194206,3892.4,3892.2,0.04611038]
[1734237499340,0.19194206,3892.3,3892.2,0.04611038]
[1734237502900,0.19194206,3892.3,3891.7,0.8083]
[1734237503087,0.19194206,3892.2,3891.7,1.15346431]
[1734237503301,1.83205337,3892.8,3891.8,0.04628206]
[1734237503471,1.05625956,3892.7,3891.8,0.04628206]
[1734237503668,0.19193268,3892.6,3891.9,0.8083]
[1734237503882,0.19193268,3892.5,3891.9,0.85457341]
[1734237504203,0.19193268,3892.4,3891.9,0.85457341]
[1734237504400,2.56892,3892.7,3891.9,0.85457341]
[1734237504602,0.19192909,3892.6,3892.0,2.64334309]
[1734237504801,0.19192909,3892.5,3892.0,3.02765117]
[1734237505009,0.19192909,3892.4,3892.1,0.04625609]
[1734237505300,0.19192909,3892.3,3892.1,0.04625609]
[1734237505597,2.56879,3892.9,3892.1,0.04625609]
[1734237505804,1.05619149,3892.8,3892.1,0.04625609]
[1734237506038,2.56879,3892.9,3891.9,0.8083]
[1734237506176,0.86428915,3892.8,3892.2,0.04624744]
[1734237506498,0.86428915,3892.8,3891.9,0.8083]
[1734237506702,2.56879,3892.9,3892.3,0.04628188]
[1734237506899,1.83205337,3893.1,3891.7,0.8083]
[1734237507107,0.86424873,3893.0,3891.9,0.8083]
[1734237507424,0.86424873,3893.0,3892.0,0.04630785]
[1734237508614,0.86424873,3893.0,3892.1,0.8017]
[1734237508793,0.86424873,3893.0,3892.2,0.04629054]
[1734237509294,0.86424873,3893.0,3892.3,0.8017]
[1734237509525,1.07345337,3893.2,3892.3,0.8017]
[1734237509917,0.86418424,3893.1,3892.3,0.8017]
[1734237510122,1.07345337,3893.3,3892.3,0.8017]
[1734237510303,1.07345337,3893.3,3892.4,0.84796986]
[1734237510501,5.80243845,3893.3,3892.4,0.84796986]
[1734237510806,2.56865,3893.1,3892.4,0.8017]
[1734237511147,2.56865,3893.1,3892.5,0.0462612]
[1734237511535,1.07345337,3893.3,3892.5,0.0462612]
[1734237511696,3.2337237,3893.3,3892.6,0.8017]